[Event "DPEM German Cup 2024"]
[Site "Bad Wildungen"]
[Date "2024.08.02"]
[Round "4.6"]
[White "Matthaei, Jakob"]
[Black "Skabs, Denis"]
[Result "1-0"]
[Annotator "ChessBase"]
[ECO "A13"]
[WhiteElo "2055"]
[BlackElo "2096"]
[PlyCount "63"]
[EventDate "2024.07.31"]
[EventCountry "GER"]
[SourceTitle "playchess.com"]
[Source "ChessBase"]
[SourceQuality "1"]
[TimeControl "40/5400+30:900+30"]

1. c4 {[%emt 0:00:05]} e6 {[%emt 0:02:21]} 2. g3 {[%emt 0:00:07]} Nf6 {[%emt 0:00:16]} 3. Bg2 {[%emt 0:00:04]} d5 {[%emt 0:00:04]} 4. Nf3 {[%emt 0:00:05]} h6 {[%emt 0:02:36]} 5. O-O {[%emt 0:01:02]} Bd6 {[%emt 0:00:51]} 6. b3 {[%emt 0:01:31]} O-O {[%emt 0:01:29]} 7. Bb2 {[%emt 0:00:34]} b6 {[%emt 0:00:15]} 8. Nc3 {[%emt 0:03:26]} Nbd7 {[%emt 0:02:44]} 9. cxd5 {[%emt 0:03:23]} exd5 {[%emt 0:01:03]} 10. d4 {[%emt 0:00:14]} Bb7 {[%emt 0:14:21]} 11. Rc1 {[%emt 0:02:42]} a6 {[%emt 0:01:44]} 12. e3 {[%emt 0:02:21]} Qe7 {[%emt 0:03:36]} 13. Re1 {[%emt 0:04:31]} Qe6 {[%emt 0:04:49]} 14. Ne2 {[%emt 0:06:34]} g5 {[%emt 0:16:50]} 15. Nc3 {[%emt 0:09:48]} Nh7 {[%emt 0:10:28]} 16. e4 {[%emt 0:02:29]} dxe4 {[%emt 0:07:29]} 17. d5 {[%emt 0:00:11]} Qf6 {[%emt 0:06:55]} 18. Nd4 {[%emt 0:00:37]} Be5 {[%emt 0:04:05]} 19. Nxe4 {[%emt 0:06:31]} Qg6 {[%emt 0:00:15]} 20. Nc6 {[%emt 0:02:25]} Bxc6 {[%emt 0:03:26]} 21. Rxc6 {[%emt 0:00:35]} Qg7 {[%emt 0:04:56]} 22. Bxe5 {[%emt 0:00:57]} Nxe5 {[%emt 0:00:28]} 23. Rxc7 {[%emt 0:00:11]} Rad8 {[%emt 0:01:38]} 24. d6 {[%emt 0:04:39]} Rd7 {[%emt 0:01:04]} 25. Qd5 {[%emt 0:02:11]} Rfd8 {[%emt 0:01:26]} 26. Rec1 {[%emt 0:11:04]} Nf8 {[%emt 0:01:20]} 27. Rxd7 {[%emt 0:04:07]} Rxd7 {[%emt 0:00:39]} 28. Rc8 {[%emt 0:00:57]} Neg6 {[%emt 0:02:01]} 29. Bh3 {[%emt 0:02:03]} Nf4 {[%emt 0:02:12]} 30. gxf4 {[%emt 0:12:11]} gxf4+ {[%emt 0:00:01]} 31. Kf1 {[%emt 0:00:56]} f3 {[%emt 0:00:55]} 32. Rxf8+ {[%emt 0:00:50]} 1-0

[Event "DPEM German Cup 2024"]
[Site "Bad Wildungen"]
[Date "2024.08.02"]
[Round "4.7"]
[White "Windmueller, Simon"]
[Black "Foerch, Benedikt"]
[Result "1/2-1/2"]
[Annotator "ChessBase"]
[ECO "D78"]
[WhiteElo "1941"]
[BlackElo "2102"]
[PlyCount "55"]
[EventDate "2024.07.31"]
[EventCountry "GER"]
[SourceTitle "playchess.com"]
[Source "ChessBase"]
[SourceQuality "1"]
[TimeControl "40/5400+30:900+30"]

1. Nf3 {[%emt 0:00:03]} Nf6 {[%emt 0:04:57]} 2. g3 {[%emt 0:00:17]} g6 {[%emt 0:00:04]} 3. Bg2 {[%emt 0:00:08]} Bg7 {[%emt 0:00:04]} 4. O-O {[%emt 0:00:08]} O-O {[%emt 0:00:04]} 5. c4 {[%emt 0:00:07]} c6 {[%emt 0:03:54]} 6. d4 {[%emt 0:04:46]} d5 {[%emt 0:00:05]} 7. Qa4 {[%emt 0:03:41]} Nbd7 {[%emt 0:12:27]} 8. cxd5 {[%emt 0:00:07]} cxd5 {[%emt 0:00:46]} 9. Nc3 {[%emt 0:00:25]} e6 {[%emt 0:00:39]} 10. Bf4 {[%emt 0:01:26]} Nb6 {[%emt 0:02:08]} 11. Qb3 {[%emt 0:01:28]} Nc4 {[%emt 0:01:03]} 12. Ne5 {[%emt 0:02:05]} Nxe5 {[%emt 0:01:46]} 13. Bxe5 {[%emt 0:00:10]} b6 {[%emt 0:00:35]} 14. Rac1 {[%emt 0:03:52]} Bb7 {[%emt 0:02:08]} 15. Rc2 {[%emt 0:04:23]} Ne8 {[%emt 0:01:51]} 16. Bxg7 {[%emt 0:00:23]} Kxg7 {[%emt 0:00:17]} 17. a4 {[%emt 0:04:24]} Rc8 {[%emt 0:04:53]} 18. Rfc1 {[%emt 0:02:11]} f5 {[%emt 0:14:53]} 19. a5 {[%emt 0:02:24]} Nd6 {[%emt 0:06:22]} 20. axb6 {[%emt 0:00:32]} axb6 {[%emt 0:00:36]} 21. Na4 {[%emt 0:00:23]} Rxc2 {[%emt 0:00:15]} 22. Rxc2 {[%emt 0:01:46]} Nc8 {[%emt 0:00:28]} 23. Nc5 {[%emt 0:05:23]} Qe7 {[%emt 0:01:35]} 24. Nd3 {[%emt 0:01:03]} Qd6 {[%emt 0:06:46]} 25. Qc3 {[%emt 0:04:16]} Na7 {[%emt 0:00:35]} 26. Qc7+ {[%emt 0:02:00]} Qxc7 {[%emt 0:00:12]} 27. Rxc7+ {[%emt 0:00:06]} Rf7 {[%emt 0:00:07]} 28. Rc2 {[%emt 0:03:46]} 1/2-1/2

[Event "DPEM German Cup 2024"]
[Site "Bad Wildungen"]
[Date "2024.08.02"]
[Round "4.8"]
[White "Wickenfeld, Stefan"]
[Black "Kampmann, Heiko"]
[Result "1-0"]
[Annotator "ChessBase"]
[ECO "A14"]
[WhiteElo "2198"]
[BlackElo "2178"]
[PlyCount "115"]
[EventDate "2024.07.31"]
[EventCountry "GER"]
[SourceTitle "playchess.com"]
[Source "ChessBase"]
[SourceQuality "1"]
[TimeControl "40/5400+30:900+30"]

1. d4 {[%emt 0:09:41]} d5 {[%emt 0:00:15]} 2. Nf3 {[%emt 0:01:03]} Nf6 {[%emt 0:00:15]} 3. g3 {[%emt 0:00:05]} e6 {[%emt 0:00:25]} 4. Bg2 {[%emt 0:00:11]} Be7 {[%emt 0:00:12]} 5. O-O {[%emt 0:00:10]} O-O {[%emt 0:00:13]} 6. b3 {[%emt 0:00:04]} b6 {[%emt 0:00:58]} 7. Bb2 {[%emt 0:00:07]} Bb7 {[%emt 0:01:02]} 8. c4 {[%emt 0:00:05]} Nbd7 {[%emt 0:00:39]} 9. cxd5 {[%emt 0:00:27]} Nxd5 {[%emt 0:01:08]} 10. Nbd2 {[%emt 0:06:45]} c5 {[%emt 0:04:46]} 11. e4 {[%emt 0:00:39]} N5f6 {[%emt 0:02:12]} 12. Qe2 {[%emt 0:01:30]} Rc8 {[%emt 0:02:10]} 13. Rfd1 {[%emt 0:01:08]} cxd4 {[%emt 0:08:05]} 14. Nxd4 {[%emt 0:02:52]} Qc7 {[%emt 0:00:49]} 15. Nc4 {[%emt 0:02:18]} Ba6 {[%emt 0:06:45]} 16. Rac1 {[%emt 0:00:33]} Qb8 {[%emt 0:04:44]} 17. e5 {[%emt 0:17:08]} Bxc4 {[%emt 0:14:12]} 18. bxc4 {[%emt 0:02:16]} Qxe5 {[%emt 0:01:06]} 19. Qxe5 {[%emt 0:00:26]} Nxe5 {[%emt 0:00:06]} 20. Nxe6 {[%emt 0:00:25]} fxe6 {[%emt 0:00:35]} 21. Bxe5 {[%emt 0:00:09]} Rfd8 {[%emt 0:02:49]} 22. Bh3 {[%emt 0:04:14]} Kf7 {[%emt 0:01:42]} 23. Rxd8 {[%emt 0:00:14]} Bxd8 {[%emt 0:01:38]} 24. Bd6 {[%emt 0:17:51]} Rc6 {[%emt 0:03:25]} 25. Bb8 {[%emt 0:00:22]} Nd7 {[%emt 0:12:19]} 26. Bf4 {[%emt 0:02:15]} Nc5 {[%emt 0:01:22]} 27. Rd1 {[%emt 0:02:36]} Be7 {[%emt 0:02:59]} 28. Bb8 {[%emt 0:00:44]} a5 {[%emt 0:03:29]} 29. Bg2 {[%emt 0:08:37]} Rc8 {[%emt 0:00:36]} 30. Bf4 {[%emt 0:00:18]} h6 {[%emt 0:03:23]} 31. Be3 {[%emt 0:01:50]} Na4 {[%emt 0:07:01]} 32. Bf1 {[%emt 0:00:45]} Nc5 {[%emt 0:02:22]} 33. Rb1 {[%emt 0:00:44]} Bd8 {[%emt 0:00:49]} 34. Be2 {[%emt 0:01:36]} Na4 {[%emt 0:03:24]} 35. Rc1 {[%emt 0:00:29]} Be7 {[%emt 0:01:50]} 36. Bd1 {[%emt 0:01:11]} Nc5 {[%emt 0:00:34]} 37. Rb1 {[%emt 0:00:45]} Bd8 {[%emt 0:01:16]} 38. Bh5+ {[%emt 0:00:25]} g6 {[%emt 0:04:20]} 39. Be2 {[%emt 0:00:16]} h5 {[%emt 0:00:50]} 40. Kg2 {[%emt 0:01:20]} Na4 {[%emt 0:00:30]} 41. Rb3 {[%emt 0:16:33]} Nc5 {[%emt 0:16:48]} 42. Rb2 {[%emt 0:02:19]} Na4 {[%emt 0:00:00]} 43. Rd2 {[%emt 0:00:00]} Nc5 {[%emt 0:00:00]} 44. Rd4 {[%emt 0:00:00]} Bc7 {[%emt 0:00:00]} 45. g4 {[%emt 0:00:00]} e5 {[%emt 0:00:00]} 46. Rd5 {[%emt 0:00:00]} Rd8 {[%emt 0:00:00]} 47. Rxd8 {[%emt 0:00:00]} Bxd8 {[%emt 0:00:00]} 48. gxh5 {[%emt 0:00:00]} Ne6 {[%emt 0:00:55]} 49. hxg6+ {[%emt 0:00:00]} Kxg6 {[%emt 0:00:04]} 50. Bd3+ {[%emt 0:00:00]} Kh5 {[%emt 0:00:29]} 51. Kf3 {[%emt 0:00:44]} Ng5+ {[%emt 0:00:18]} 52. Kg3 {[%emt 0:00:11]} Ne6 {[%emt 0:00:43]} 53. Be2+ {[%emt 0:02:07]} Kg6 {[%emt 0:00:08]} 54. Kg4 {[%emt 0:00:10]} Nf4 {[%emt 0:01:38]} 55. Bf3 {[%emt 0:00:51]} Bc7 {[%emt 0:01:52]} 56. Be4+ {[%emt 0:00:38]} Kf6 {[%emt 0:00:19]} 57. h4 {[%emt 0:00:21]} Ne6 {[%emt 0:01:28]} 58. h5 {[%emt 0:16:02]} 1-0

[Event "DPEM German Cup 2024"]
[Site "Bad Wildungen"]
[Date "2024.08.03"]
[Round "5.1"]
[White "Poetsch, Hagen"]
[Black "Ehmann, Thilo"]
[Result "1-0"]
[Annotator "ChessBase"]
[ECO "B90"]
[WhiteElo "2456"]
[BlackElo "2341"]
[PlyCount "82"]
[EventDate "2024.07.31"]
[EventCountry "GER"]
[SourceTitle "playchess.com"]
[Source "ChessBase"]
[SourceQuality "1"]
[TimeControl "40/5400+30:900+30"]

1. e4 {[%emt 0:00:03]} c5 {[%emt 0:02:41]} 2. Nf3 {[%emt 0:00:08]} d6 {[%emt 0:00:02]} 3. d4 {[%emt 0:00:07]} cxd4 {[%emt 0:00:06]} 4. Nxd4 {[%emt 0:00:06]} Nf6 {[%emt 0:00:03]} 5. Nc3 {[%emt 0:00:10]} a6 {[%emt 0:00:02]} 6. h4 {[%emt 0:00:08]} e5 {[%emt 0:01:52]} 7. Nb3 {[%emt 0:00:06]} Be7 {[%emt 0:04:31]} 8. Be2 {[%emt 0:00:24]} b5 {[%emt 0:01:11]} 9. a4 {[%emt 0:01:11]} b4 {[%emt 0:00:44]} 10. Nd5 {[%emt 0:00:06]} Bb7 {[%emt 0:02:10]} 11. Nxe7 {[%emt 0:00:30]} Qxe7 {[%emt 0:00:08]} 12. f3 {[%emt 0:00:05]} d5 {[%emt 0:06:15]} 13. Be3 {[%emt 0:00:21]} dxe4 {[%emt 0:07:01]} 14. Bc5 {[%emt 0:04:23]} Qe6 {[%emt 0:01:19]} 15. Na5 {[%emt 0:10:31]} Bd5 {[%emt 0:01:04]} 16. fxe4 {[%emt 0:05:00]} Bxe4 {[%emt 0:01:11]} 17. Nc4 {[%emt 0:02:16]} Nbd7 {[%emt 0:01:50]} 18. Nd6+ {[%emt 0:02:18]} Kd8 {[%emt 0:00:03]} 19. Bxb4 {[%emt 0:10:48]} a5 {[%emt 0:15:09]} 20. Ba3 {[%emt 0:09:52]} Bxg2 {[%emt 0:03:11]} 21. Bc4 {[%emt 0:02:35]} Bd5 {[%emt 0:03:06]} 22. Bxd5 {[%emt 0:00:34]} Nxd5 {[%emt 0:00:33]} 23. Qf3 {[%emt 0:00:53]} f5 {[%emt 0:06:09]} 24. O-O-O {[%emt 0:01:36]} e4 {[%emt 0:00:40]} 25. Qb3 {[%emt 0:07:04]} Nf4 {[%emt 0:08:54]} 26. Qb5 {[%emt 0:05:27]} e3 {[%emt 0:08:39]} 27. Nb7+ {[%emt 0:01:57]} Ke8 {[%emt 0:01:43]} 28. Nc5 {[%emt 0:01:14]} Rb8 {[%emt 0:00:03]} 29. Nxe6 {[%emt 0:00:23]} Rxb5 {[%emt 0:00:07]} 30. Nxg7+ {[%emt 0:00:58]} Kd8 {[%emt 0:00:34]} 31. axb5 {[%emt 0:00:06]} Ne2+ {[%emt 0:00:05]} 32. Kb1 {[%emt 0:00:05]} f4 {[%emt 0:00:03]} 33. Rhe1 {[%emt 0:03:10]} f3 {[%emt 0:00:46]} 34. Rxe2 {[%emt 0:00:39]} fxe2 {[%emt 0:00:04]} 35. Re1 {[%emt 0:00:06]} Rg8 {[%emt 0:01:08]} 36. Ne6+ {[%emt 0:00:06]} Kc8 {[%emt 0:00:01]} 37. Rxe2 {[%emt 0:00:08]} Rg3 {[%emt 0:00:04]} 38. Bc5 {[%emt 0:02:01]} Nxc5 {[%emt 0:00:17]} 39. Nxc5 {[%emt 0:00:07]} Kc7 {[%emt 0:00:24]} 40. c4 {[%emt 0:00:37]} Rh3 {[%emt 0:00:41]} 41. Kc2 {[%emt 0:15:28]} Rxh4 {[%emt 0:15:18]} 1-0

[Event "DPEM German Cup 2024"]
[Site "Bad Wildungen"]
[Date "2024.08.03"]
[Round "5.2"]
[White "Khachatryan, Taron"]
[Black "Fink, Christian"]
[Result "1-0"]
[Annotator "ChessBase"]
[ECO "E69"]
[WhiteElo "2221"]
[BlackElo "2113"]
[PlyCount "95"]
[EventDate "2024.07.31"]
[EventCountry "GER"]
[SourceTitle "playchess.com"]
[Source "ChessBase"]
[SourceQuality "1"]
[TimeControl "40/5400+30:900+30"]

1. Nf3 {[%emt 0:00:19]} Nf6 {[%emt 0:00:50]} 2. d4 {[%emt 0:02:24]} g6 {[%emt 0:00:08]} 3. c4 {[%emt 0:00:21]} Bg7 {[%emt 0:00:04]} 4. Nc3 {[%emt 0:00:15]} d6 {[%emt 0:00:07]} 5. g3 {[%emt 0:00:19]} O-O {[%emt 0:00:06]} 6. Bg2 {[%emt 0:00:02]} Nbd7 {[%emt 0:01:30]} 7. O-O {[%emt 0:00:22]} c6 {[%emt 0:00:07]} 8. e4 {[%emt 0:03:10]} e5 {[%emt 0:01:10]} 9. h3 {[%emt 0:03:32]} Qc7 {[%emt 0:00:27]} 10. Re1 {[%emt 0:01:43]} Re8 {[%emt 0:00:16]} 11. Be3 {[%emt 0:03:39]} a6 {[%emt 0:02:55]} 12. Rc1 {[%emt 0:01:22]} b6 {[%emt 0:00:09]} 13. b4 {[%emt 0:02:49]} Bb7 {[%emt 0:01:13]} 14. c5 {[%emt 0:09:53]} bxc5 {[%emt 0:07:46]} 15. bxc5 {[%emt 0:01:23]} exd4 {[%emt 0:03:09]} 16. cxd6 {[%emt 0:00:45]} Qxd6 {[%emt 0:00:49]} 17. Bxd4 {[%emt 0:08:36]} Qe7 {[%emt 0:13:40]} 18. e5 {[%emt 0:05:24]} Nd5 {[%emt 0:06:14]} 19. Nxd5 {[%emt 0:00:58]} cxd5 {[%emt 0:00:05]} 20. Rc7 {[%emt 0:00:59]} Bc8 {[%emt 0:07:18]} 21. h4 {[%emt 0:19:25]} Qd8 {[%emt 0:08:10]} 22. Rc2 {[%emt 0:01:22]} Nf8 {[%emt 0:00:30]} 23. Rd2 {[%emt 0:02:00]} Qa5 {[%emt 0:04:47]} 24. Qb3 {[%emt 0:10:30]} Be6 {[%emt 0:02:12]} 25. Bb6 {[%emt 0:00:51]} Qb5 {[%emt 0:00:15]} 26. Qe3 {[%emt 0:01:46]} Rab8 {[%emt 0:03:08]} 27. Bd4 {[%emt 0:00:29]} Rec8 {[%emt 0:00:44]} 28. h5 {[%emt 0:00:53]} h6 {[%emt 0:01:14]} 29. hxg6 {[%emt 0:00:24]} fxg6 {[%emt 0:00:50]} 30. Ba7 {[%emt 0:00:48]} Rb7 {[%emt 0:02:37]} 31. Nd4 {[%emt 0:00:13]} Qa5 {[%emt 0:03:41]} 32. Nxe6 {[%emt 0:01:40]} Rxa7 {[%emt 0:00:02]} 33. Qxa7 {[%emt 0:00:48]} Nxe6 {[%emt 0:00:13]} 34. Red1 {[%emt 0:00:25]} Rc1 {[%emt 0:02:21]} 35. Qa8+ {[%emt 0:01:02]} Kh7 {[%emt 0:00:08]} 36. Qxd5 {[%emt 0:17:39]} Rxd1+ {[%emt 0:06:25]} 37. Rxd1 {[%emt 0:00:00]} Qa4 {[%emt 0:00:03]} 38. Kh2 {[%emt 0:01:00]} Ng5 39. Re1 {[%emt 0:00:00]} Qb4 {[%emt 0:07:23]} 40. Rd1 {[%emt 0:00:00]} Qg4 {[%emt 0:03:01]} 41. f4 {[%emt 0:10:06]} Qh5+ {[%emt 0:18:08]} 42. Kg1 {[%emt 0:00:07]} Nh3+ {[%emt 0:00:55]} 43. Kf1 {[%emt 0:00:35]} Qg4 {[%emt 0:02:02]} 44. Bxh3 {[%emt 0:05:48]} Qxh3+ {[%emt 0:00:09]} 45. Kf2 {[%emt 0:00:12]} h5 {[%emt 0:00:19]} 46. Qf3 {[%emt 0:01:25]} Qe6 {[%emt 0:01:38]} 47. Qd5 {[%emt 0:00:39]} Qg4 {[%emt 0:02:23]} 48. Qd7 {[%emt 0:00:00]} 1-0

[Event "DPEM German Cup 2024"]
[Site "Bad Wildungen"]
[Date "2024.08.03"]
[Round "5.3"]
[White "Colpe, Malte"]
[Black "Matthaei, Jakob"]
[Result "1-0"]
[Annotator "ChessBase"]
[ECO "E11"]
[WhiteElo "2377"]
[BlackElo "2055"]
[PlyCount "153"]
[EventDate "2024.07.31"]
[EventCountry "GER"]
[SourceTitle "playchess.com"]
[Source "ChessBase"]
[SourceQuality "1"]
[TimeControl "40/5400+30:900+30"]

1. d4 {[%emt 0:00:04]} Nf6 {[%emt 0:00:02]} 2. c4 {[%emt 0:00:29]} e6 {[%emt 0:00:04]} 3. Nf3 {[%emt 0:00:15]} Bb4+ {[%emt 0:00:25]} 4. Nbd2 {[%emt 0:00:18]} d5 {[%emt 0:00:18]} 5. Qa4+ {[%emt 0:03:15]} Nc6 {[%emt 0:00:09]} 6. a3 {[%emt 0:04:16]} Bxd2+ {[%emt 0:03:26]} 7. Bxd2 {[%emt 0:00:12]} Bd7 {[%emt 0:02:21]} 8. Qc2 {[%emt 0:02:02]} Ne4 {[%emt 0:00:34]} 9. Bc1 {[%emt 0:09:39]} Ne7 {[%emt 0:05:04]} 10. c5 {[%emt 0:13:02]} a5 {[%emt 0:07:41]} 11. Ne5 {[%emt 0:06:41]} Nc6 {[%emt 0:05:21]} 12. Nxc6 {[%emt 0:00:47]} Bxc6 {[%emt 0:00:41]} 13. e3 {[%emt 0:05:59]} a4 {[%emt 0:06:35]} 14. Bd3 {[%emt 0:01:12]} f5 {[%emt 0:00:35]} 15. O-O {[%emt 0:01:03]} O-O {[%emt 0:00:52]} 16. f3 {[%emt 0:00:46]} Nf6 {[%emt 0:00:08]} 17. Bd2 {[%emt 0:01:44]} Qd7 {[%emt 0:05:23]} 18. Bb4 {[%emt 0:02:03]} Rfe8 {[%emt 0:01:08]} 19. Qe2 {[%emt 0:01:25]} g6 {[%emt 0:13:04]} 20. Rfe1 {[%emt 0:03:08]} Re7 {[%emt 0:03:01]} 21. Qf2 {[%emt 0:01:49]} Rf7 {[%emt 0:01:28]} 22. Rad1 {[%emt 0:02:16]} Re8 {[%emt 0:01:08]} 23. Bc2 {[%emt 0:01:00]} Qc8 {[%emt 0:08:37]} 24. Qg3 {[%emt 0:02:41]} Qd8 {[%emt 0:03:16]} 25. Bc3 {[%emt 0:01:39]} Nh5 {[%emt 0:02:12]} 26. Qe5 {[%emt 0:04:26]} Nf6 {[%emt 0:04:54]} 27. Ba5 {[%emt 0:07:03]} Qd7 {[%emt 0:01:37]} 28. Bb1 {[%emt 0:01:41]} Ra8 {[%emt 0:01:02]} 29. Bc3 {[%emt 0:00:17]} Re8 {[%emt 0:00:53]} 30. Ba2 {[%emt 0:00:34]} Qc8 {[%emt 0:00:41]} 31. Rd2 {[%emt 0:02:00]} Nd7 {[%emt 0:02:26]} 32. Qg3 {[%emt 0:00:23]} Nf6 {[%emt 0:00:11]} 33. Qh4 {[%emt 0:02:13]} Qd7 {[%emt 0:06:21]} 34. Rc1 {[%emt 0:00:38]} Qe7 {[%emt 0:01:21]} 35. Rdd1 {[%emt 0:00:27]} Nh5 {[%emt 0:02:35]} 36. Qxe7 {[%emt 0:03:53]} Rfxe7 {[%emt 0:00:15]} 37. Be1 {[%emt 0:02:30]} h6 {[%emt 0:00:40]} 38. Bb1 {[%emt 0:06:29]} Kg7 {[%emt 0:00:24]} 39. h3 {[%emt 0:01:06]} Nf6 {[%emt 0:05:22]} 40. Bg3 {[%emt 0:00:57]} Kf7 {[%emt 0:00:52]} 41. Be5 {[%emt 0:18:58]} Rc8 {[%emt 0:18:42]} 42. g4 {[%emt 0:01:31]} Bb5 {[%emt 0:04:05]} 43. Kf2 {[%emt 0:01:03]} Ree8 {[%emt 0:00:00]} 44. Rg1 {[%emt 0:00:00]} Rg8 {[%emt 0:00:00]} 45. Bf4 {[%emt 0:00:00]} Rh8 {[%emt 0:00:00]} 46. Rg2 {[%emt 0:00:00]} h5 {[%emt 0:00:00]} 47. gxf5 {[%emt 0:00:00]} exf5 {[%emt 0:00:00]} 48. Bc2 {[%emt 0:00:00]} Rhg8 {[%emt 0:00:00]} 49. Ke1 {[%emt 0:00:00]} Bc6 {[%emt 0:00:00]} 50. Kd2 {[%emt 0:00:00]} Bb5 {[%emt 0:00:31]} 51. Kc3 {[%emt 0:00:00]} c6 {[%emt 0:02:26]} 52. Kb4 {[%emt 0:00:00]} Ra8 {[%emt 0:01:17]} 53. Rcg1 {[%emt 0:00:24]} Nd7 {[%emt 0:00:05]} 54. e4 {[%emt 0:00:45]} dxe4 {[%emt 0:00:22]} 55. fxe4 {[%emt 0:00:07]} Nf6 {[%emt 0:00:05]} 56. Rf2 {[%emt 0:02:28]} Ke6 {[%emt 0:00:56]} 57. d5+ {[%emt 0:00:29]} Kf7 {[%emt 0:01:43]} 58. Bg5 {[%emt 0:00:50]} Rae8 {[%emt 0:00:17]} 59. Bxf6 {[%emt 0:01:17]} Kxf6 {[%emt 0:00:06]} 60. d6 {[%emt 0:00:58]} Re5 {[%emt 0:00:08]} 61. Rxf5+ {[%emt 0:01:00]} Rxf5 {[%emt 0:00:20]} 62. exf5 {[%emt 0:00:08]} g5 {[%emt 0:00:18]} 63. Ka5 {[%emt 0:00:58]} g4 {[%emt 0:00:15]} 64. hxg4 {[%emt 0:00:13]} hxg4 {[%emt 0:00:04]} 65. Kb6 {[%emt 0:00:37]} Rg7 {[%emt 0:00:20]} 66. Rg3 {[%emt 0:00:38]} Be2 {[%emt 0:01:27]} 67. Re3 {[%emt 0:01:16]} Bc4 {[%emt 0:00:02]} 68. Rg3 {[%emt 0:01:04]} Be2 {[%emt 0:00:09]} 69. Be4 {[%emt 0:01:17]} Kg5 {[%emt 0:03:15]} 70. Re3 {[%emt 0:00:35]} Ba6 {[%emt 0:00:00]} 71. Bxc6 {[%emt 0:00:39]} bxc6 {[%emt 0:00:00]} 72. Kxa6 {[%emt 0:00:14]} Kxf5 {[%emt 0:00:00]} 73. Re7 {[%emt 0:00:57]} Rg8 {[%emt 0:00:00]} 74. Kb7 {[%emt 0:00:45]} g3 {[%emt 0:00:00]} 75. d7 {[%emt 0:00:20]} g2 {[%emt 0:00:00]} 76. Re1 {[%emt 0:00:13]} Rg7 {[%emt 0:00:00]} 77. Kxc6 {[%emt 0:00:13]} 1-0

[Event "DPEM German Cup 2024"]
[Site "Bad Wildungen"]
[Date "2024.08.03"]
[Round "5.4"]
[White "Cofmann, Veaceslav"]
[Black "Windmueller, Simon"]
[Result "1-0"]
[Annotator "ChessBase"]
[ECO "D80"]
[WhiteElo "2245"]
[BlackElo "1941"]
[PlyCount "99"]
[EventDate "2024.07.31"]
[EventCountry "GER"]
[SourceTitle "playchess.com"]
[Source "ChessBase"]
[SourceQuality "1"]
[TimeControl "40/5400+30:900+30"]

1. d4 {[%emt 0:00:04]} Nf6 {[%emt 0:00:07]} 2. c4 {[%emt 0:00:06]} g6 {[%emt 0:00:10]} 3. Bg5 {[%emt 0:00:06]} Bg7 {[%emt 0:00:14]} 4. Nc3 {[%emt 0:00:08]} d5 {[%emt 0:00:07]} 5. Bxf6 {[%emt 0:02:21]} Bxf6 {[%emt 0:00:05]} 6. cxd5 {[%emt 0:00:16]} c6 {[%emt 0:02:48]} 7. e4 {[%emt 0:00:08]} cxd5 {[%emt 0:00:16]} 8. Bb5+ {[%emt 0:00:13]} Bd7 {[%emt 0:00:31]} 9. Bxd7+ {[%emt 0:01:07]} Qxd7 {[%emt 0:00:08]} 10. exd5 {[%emt 0:07:24]} O-O {[%emt 0:00:37]} 11. Nge2 {[%emt 0:01:39]} Na6 {[%emt 0:04:02]} 12. Qb3 {[%emt 0:00:27]} Rab8 {[%emt 0:00:42]} 13. Rd1 {[%emt 0:06:08]} Rfd8 {[%emt 0:02:16]} 14. h4 {[%emt 0:07:53]} Nc7 {[%emt 0:05:26]} 15. h5 {[%emt 0:03:30]} Nxd5 {[%emt 0:00:26]} 16. hxg6 {[%emt 0:00:15]} hxg6 {[%emt 0:00:07]} 17. Rd3 {[%emt 0:01:46]} Nxc3 {[%emt 0:00:39]} 18. bxc3 {[%emt 0:05:04]} Qd5 {[%emt 0:03:20]} 19. Rf3 {[%emt 0:00:47]} Qxb3 {[%emt 0:01:36]} 20. axb3 {[%emt 0:00:06]} b5 {[%emt 0:00:29]} 21. b4 {[%emt 0:01:21]} Kg7 {[%emt 0:08:16]} 22. Ng3 {[%emt 0:00:58]} a5 {[%emt 0:01:07]} 23. bxa5 {[%emt 0:04:42]} b4 {[%emt 0:01:17]} 24. O-O {[%emt 0:00:42]} bxc3 {[%emt 0:00:15]} 25. Rxc3 {[%emt 0:00:10]} Rxd4 {[%emt 0:00:18]} 26. Ra3 {[%emt 0:07:22]} Rd5 {[%emt 0:24:33]} 27. Ne4 {[%emt 0:01:31]} Bb2 {[%emt 0:04:50]} 28. Ra2 {[%emt 0:01:28]} Re5 {[%emt 0:02:02]} 29. Rb1 {[%emt 0:02:54]} Rxe4 {[%emt 0:00:19]} 30. Rbxb2 {[%emt 0:00:31]} Rxb2 {[%emt 0:00:22]} 31. Rxb2 {[%emt 0:00:04]} Ra4 {[%emt 0:00:19]} 32. Rb5 {[%emt 0:00:06]} f6 {[%emt 0:04:35]} 33. Kh2 {[%emt 0:06:37]} Ra3 {[%emt 0:00:42]} 34. f4 {[%emt 0:00:42]} Kf7 {[%emt 0:05:15]} 35. g4 {[%emt 0:00:30]} Ra2+ {[%emt 0:01:17]} 36. Kg3 {[%emt 0:00:10]} Ra3+ {[%emt 0:00:06]} 37. Kf2 {[%emt 0:00:09]} Ra4 {[%emt 0:00:21]} 38. Ke3 {[%emt 0:00:52]} Ra3+ {[%emt 0:00:11]} 39. Kd4 {[%emt 0:00:32]} Ra4+ {[%emt 0:07:47]} 40. Kc5 {[%emt 0:01:51]} e5 {[%emt 0:00:05]} 41. Rb7+ {[%emt 0:19:14]} Ke8 {[%emt 0:15:51]} 42. Kb5 {[%emt 0:00:55]} Ra1 {[%emt 0:00:39]} 43. a6 {[%emt 0:00:33]} exf4 {[%emt 0:02:56]} 44. a7 {[%emt 0:00:05]} f5 {[%emt 0:00:13]} 45. gxf5 {[%emt 0:00:36]} g5 {[%emt 0:00:07]} 46. Rb8+ {[%emt 0:00:13]} Ke7 {[%emt 0:00:06]} 47. a8=Q {[%emt 0:00:07]} Rxa8 {[%emt 0:00:05]} 48. Rxa8 {[%emt 0:00:06]} f3 {[%emt 0:00:27]} 49. Kc4 {[%emt 0:01:30]} Kf6 {[%emt 0:01:38]} 50. Kd3 {[%emt 0:00:15]} 1-0